Cogmind - Beta 17 @@@ ROGUE MODE // 2026.08.03 @ 22:10:34 Player: knowler Result: Destroyed by 11-TL9(R) with Subdweller Machine Gun Performance ------------- Evolutions (0) 0 Regions Visited (2) 400 Robots Destroyed (18) 90 Value Destroyed (402) 402 Prototype IDs (2) 40 Alien Tech Used (0) 0 Bonus (0) 0 TOTAL SCORE: 932 Bonus ------- None Cogmind --------- Core Integrity 0/250 Matter 274/300 Energy 77/100 System Corruption 0% Temperature Cool (0) Movement Core (100) Ox1 Location -10/Subcaves Parts ------- > --- POWER (1) -------- (None) > --- PROPULSION (2) --- (None) > --- UTILITY (2) ------ Small Storage Unit > --- WEAPON (2) ------- (None) > --- INVENTORY (8) ---- Sensor Array Seismic Detector Scrap Shield Shotgun Datajack Peak State ------------ > --- POWER ------------ Light Ion Engine > --- PROPULSION ------- Aluminum Leg Aluminum Leg > --- UTILITY ---------- Small Storage Unit Structural Scanner > --- WEAPON ----------- Shotgun Shotgun > --- INVENTORY -------- Ion Engine EM Shotgun EM Shotgun Small Laser Shotgun Shotgun Datajack [Rating: 10] Favorites ----------- Power Light Ion Engine Engine Light Ion Engine Propulsion Aluminum Leg Leg Aluminum Leg Utility Small Storage Unit Device Structural Scanner Storage Small Storage Unit Weapon Shotgun Energy Gun EM Pulse Gun Ballistic Gun Shotgun Build | -11 -10 -10 ------- Run | Yrd Mat Sub Slots Evolved . | . . . Power . | . . . Propulsion . | . . . Utility . | . . . Weapon . | . . . Parts Attached 13 | 4 6 3 Power 2 | 1 . 1 Engine 2 | 1 . 1 Core . | . . . Reactor . | . . . Propulsion 2 | 2 . . Treads . | . . . Leg 2 | 2 . . Wheel . | . . . Hover . | . . . Flight . | . . . Utility 2 | 1 1 . Device 1 | . 1 . Storage 1 | 1 . . Processor . | . . . Hackware . | . . . Protection . | . . . Artifact . | . . . Weapon 7 | . 5 2 Energy Gun 3 | . 1 2 Energy Cannon . | . . . Ballistic Gun 4 | . 4 . Ballistic Cannon . | . . . Launcher . | . . . Special Weapon . | . . . Impact Weapon . | . . . Slashing Weapon . | . . . Piercing Weapon . | . . . Special Melee Weapon . | . . . Unidentified Prototypes . | . . . Parts Lost 8 | . . 8 Power 1 | . . 1 Propulsion 2 | . . 2 Utility 1 | . . 1 Weapon 4 | . . 4 Highest Loss Streak 8 | . . 8 To Critical Strikes . | . . . Average Backups 5 | 2 5 7 Power . | 1 . . Propulsion . | . . . Utility . | . . 2 Weapon 3 | 1 3 3 Tool/Special . | . . . Unused Backups 6 | . . 6 Power . | . . . Propulsion . | . . . Utility 3 | . . 3 Weapon 2 | . . 2 Tool/Special 1 | . . 1 Average Slot Usage (%) 96 | . 97 89 Engine 13 | . 14 13 Leg 26 | . 28 19 Device 12 | . 12 14 Storage 14 | . 14 14 Energy Gun 3 | . 3 . Ballistic Gun 24 | . 23 28 Peak Build Rating 10 | 4 10 10 Average Rating 8 | 2 9 9 On Entrance 4 | . 4 10 Avg Prop Armor Cover (%) . | . . . Naked Turns . | . . . Heaviest Build 17 | 8 15 17 Greatest Support 20 | 20 20 20 Greatest Overweight (x) 5 | . 1 5 Average Overweight (x) . | . . . Largest Inventory Capacity 8 | 8 8 8 Average Capacity 7 | 6 8 8 Most Carried 8 | 5 8 8 Average Carried 6 | 2 5 7 Final Capacity 8 | 8 8 8 Final Carried 8 | 4 8 6 Class Distribution -------------------- 100% | Mutant Dominant Class ---------------- Mutant | -10/Materials Mutant | -10/Subcaves Resources | -11 -10 -10 ----------- Run | Yrd Mat Sub Matter Collected 518 | 234 249 35 Remotely . | . . . Salvage Created 451 | . 409 42 Parts 34 | . 32 2 Haulers Intercepted . | . . . Recyclers Shooed 1 | . 1 . Parts Field Recycled . | . . . Retrieved Matter . | . . . Parts Self-Destructed 5 | . . 5 Prevented . | . . . Parts Restored . | . . . Kills | -11 -10 -10 ------- Run | Yrd Mat Sub Combat Hostiles Destroyed 18 | . 17 1 Guns 18 | . 17 1 Classes Destroyed 3 | . 2 1 Swarmer 9 | . 9 . Grunt 8 | . 8 . Subdweller 1 | . . 1 Best Kill Streak 7 | . 7 1 Combat Bots Only 7 | . 7 1 Max Kills in Single Turn 1 | . 1 1 Gunslinging . | . . . Exploded . | . . . Melee . | . . . Uniques/NPCs Destroyed . | . . . Combat | -11 -10 -10 -------- Run | Yrd Mat Sub Hostile Shots Fired 89 | . 54 35 Missed 26 | . 18 8 Hits 63 | . 36 27 Projectile 63 | . 36 27 Critical Strikes 1 | . 1 . Damage Taken 1069 | . 336 733 Core 259 | . 73 186 Absorbed by Shields . | . . . Regen/Repaired (Parts) 64 | . 64 . Core Remaining (%) 100 | 100 . . Volleys Fired 36 | . 31 5 Largest 2 | . 2 2 Hottest 68 | . 60 68 Shots Fired 72 | . 62 10 Gun 72 | . 62 10 Cannon . | . . . Launcher . | . . . Special . | . . . Kinetic 61 | . 52 9 Thermal . | . . . Explosive . | . . . Electromagnetic 11 | . 10 1 Robot Hit Streak 7 | . 7 7 Robot Miss Streak 3 | . 3 1 Penetration Max . | . . . Secondary Targets 3 | . 2 1 Max Gunslinging Chain 1 | . 1 1 Shots Hit Robots 49 | . 39 10 Core Hits 27 | . 25 2 Critical Kills . | . . . Critical Parts Destroyed . | . . . Critical Strikes . | . . . Melee Attacks . | . . . Impact . | . . . Slashing . | . . . Piercing . | . . . Sneak Attacks . | . . . Combat Hostiles . | . . . Follow-up Attacks . | . . . Damage Inflicted 751 | . 596 155 Guns 751 | . 596 155 Cannons . | . . . Explosions . | . . . Melee . | . . . Ramming . | . . . Kinetic 691 | . 550 141 Thermal . | . . . Explosive . | . . . Electromagnetic 60 | . 46 14 Impact . | . . . Slashing . | . . . Piercing . | . . . Highest Corruption . | . . . Average Corruption . | . . . Corruption Purged . | . . . Corruption Blocked . | . . . Overload Shots . | . . . Overflow Damage . | . . . Projectiles . | . . . Explosions . | . . . Melee . | . . . Knockbacks . | . . . Impact . | . . . Kinetic . | . . . Secondary . | . . . Self-Inflicted Damage . | . . . Shots . | . . . Rammed . | . . . Targets Rammed . | . . . Kicked . | . . . Crushed . | . . . Highest Temperature 7 | . 7 . Average Temperature 3 | . 3 . Received Heat Transfer 198 | . 102 96 Siege Activations . | . . . Martial Activations . | . . . Shielding Activations . | . . . Robots Disrupted . | . . . Combat Hostiles . | . . . Robots Corrupted . | . . . Combat Hostiles . | . . . Parts Fried . | . . . Impact Corruptions . | . . . Robots Melted . | . . . Combat Hostiles . | . . . Parts Melted . | . . . Heat Transferred . | . . . Parts Sabotaged . | . . . Parts Stolen . | . . . Parts Stripped . | . . . Power Chain Reactions . | . . . Alert | -11 -10 -10 ------- Run | Yrd Mat Sub Maximum Alert Level 1 | . 1 . Low Security (%) 65 | 100 63 . Level 1 34 | . 36 . Level 2 . | . . . Level 3 . | . . . Level 4 . | . . . Level 5 . | . . . High Security . | . . . Max Security . | . . . Peak Influence 249 | . 249 . Initial . | . . . Average 105 | . 114 . Influence Increases 465 | . 465 . Destroy 0b10 Robot/C 340 | . 340 . Destroy Leader 70 | . 70 . Successful Hack 10 | . 10 . Lose Combat Pursuer 45 | . 45 . Influence Decreases 465 | . 265 200 Entered New Map 96 | . . 96 Time Decay 325 | . 265 60 Lost Part 44 | . . 44 Squads Dispatched 4 | . 4 . Investigation 2 | . 2 . Extermination . | . . . Reinforcement 2 | . 2 . Assault . | . . . Garrison . | . . . Intercept . | . . . Searches Triggered . | . . . Construction Impeded . | . . . Haulers Reinforced . | . . . Active Scanning Responses . | . . . Cargo Convoy Interrupts . | . . . Stealth | -11 -10 -10 --------- Run | Yrd Mat Sub Distress Signals 4 | . 4 . Communications Jammed . | . . . Distress Signals . | . . . Times Spotted 31 | . 25 6 Peak Tracking Total 6 | . 6 5 Tactical Retreats 2 | . 2 . Traps | -11 -10 -10 ------- Run | Yrd Mat Sub Traps Triggered 2 | . 1 1 Indirectly . | . . . Trap Hack Attempts . | . . . Triggered . | . . . Disarmed . | . . . Reprogrammed . | . . . Reused . | . . . Traps Extracted . | . . . Installed . | . . . Triggered . | . . . Machines | -11 -10 -10 ---------- Run | Yrd Mat Sub Machines Disabled . | . . . Max in Single Turn . | . . . Machines Repaired . | . . . Machines Dismantled . | . . . Machines Sabotaged . | . . . Overloaded Fab Kills . | . . . Hacking | -11 -10 -10 --------- Run | Yrd Mat Sub Machines Accessed 6 | . 6 . Terminals 4 | . 4 . Fabricators . | . . . Repair Stations 1 | . 1 . Recycling Units 1 | . 1 . Scanalyzers . | . . . Garrison Access . | . . . Total Hacks 18 | . 18 . Successful 11 | . 11 . Failed 7 | . 7 . Catastrophic . | . . . Database Lockouts . | . . . Manual . | . . . Terminals 9 | . 9 . Fabricators . | . . . Repair Stations 4 | . 4 . Recycling Units 5 | . 5 . Scanalyzers . | . . . Garrison Access . | . . . Terminal Hacks 5 | . 5 . Prototype ID Bank 1 | . 1 . Branch Access Points 1 | . 1 . Maintenance Status 1 | . 1 . Investigation Status 1 | . 1 . Registered Components 1 | . 1 . Fabricator Hacks . | . . . Repair Station Hacks 4 | . 4 . Scan Component 2 | . 2 . Repair 2 | . 2 . Recycling Unit Hacks 2 | . 2 . Report Inventory 1 | . 1 . Retrieve Components 1 | . 1 . Scanalyzer . | . . . Garrison Access Hacks . | . . . Unauthorized Hacks . | . . . Terminals . | . . . Fabricators . | . . . Repair Stations . | . . . Recycling Units . | . . . Scanalyzers . | . . . Garrison Access . | . . . Data Cores Recovered . | . . . Used . | . . . Hacking Detections 3 | . 3 . Full Trace Events 2 | . 2 . Feedback Events . | . . . Feedback Blocked . | . . . Robot Schematics Acquired . | . . . Robots Built . | . . . Authchips . | . . . Time . | . . . Total Robot Build Rating . | . . . Part Schematics Acquired . | . . . Parts Built . | . . . Authchips . | . . . Time . | . . . Total Part Build Rating . | . . . Part Studies Acquired . | . . . Parts Repaired 2 | . 2 . Time 58 | . 58 . Parts Recycled . | . . . Recycled Matter . | . . . Retrieved Matter . | . . . Retrieved Components 7 | . 7 . Parts Scanalyzed . | . . . Part Schematics Acquired . | . . . Parts Damaged . | . . . Bothacking | -11 -10 -10 ------------ Run | Yrd Mat Sub Used RIF Installer . | . . . Robots Hacked . | . . . Non-combat . | . . . Combat . | . . . Robot Hacks Applied . | . . . Relay Couplers Released . | . . . Fabnet Peak Effective % . | . . . Robots Rewired . | . . . Allies Hacked . | . . . Hacks Repelled . | . . . Allies | -11 -10 -10 -------- Run | Yrd Mat Sub Total Allies . | . . . Largest Group . | . . . Highest-Rated Group . | . . . Highest-Rated Ally . | . . . Total Orders . | . . . Ally Attacks . | . . . Total Damage . | . . . Kills . | . . . Allies Corrupted . | . . . Allies Melted . | . . . Intel | -11 -10 -10 ------- Run | Yrd Mat Sub Active Infowar (turns) 778 | . 640 138 Structural 778 | . 640 138 Robot Analysis Total . | . . . Derelict Logs Recovered . | . . . Drone Launches . | . . . Drone Recoveries . | . . . Exploration | -11 -10 -10 ------------- Run | Yrd Mat Sub Turns Passed 918 | 59 719 140 Spaces Moved 638 | 53 504 81 Core 27 | 22 . 5 Treads . | . . . Legs 611 | 31 504 76 Wheels . | . . . Hover . | . . . Flight . | . . . Fastest Speed 50 | 50 120 120 Average Speed 120 | 90 120 143 Slowest Speed 300 | 120 190 300 Overloaded Moves . | . . . Propulsion Burnouts . | . . . Robots Hopped . | . . . Potential Cave-ins . | . . . Cave-ins Triggered . | . . . Exploration Rate (%) 31 | 3 85 7 Regions Visited 2 Branch Regions 1 Pre-discovered Areas . | . . . Known Exits Taken . | . . . Unknown Exits Taken 2 | 1 1 . Scrap Searched . | . . . Spaces Dug . | . . . Terrain Destroyed . | . . . Melee . | . . . Projectile . | . . . AOE . | . . . Terrain Rammed . | . . . Walls Destroyed . | . . . Machines Disabled . | . . . Actions | -11 -10 -10 --------- Run | Yrd Mat Sub Total 716 | 64 556 96 Wait 4 | . . 4 Move 636 | 52 503 81 Hop . | . . . Pick Up 21 | 8 12 1 Fast Attach . | . . . Attach 14 | 4 7 3 Detach . | . . . Swap . | . . . Drop 5 | . 3 2 Fire 36 | . 31 5 Melee . | . . . Ram . | . . . Kick . | . . . Crush . | . . . Escape Stasis . | . . . Rewire . | . . . Trap . | . . . Miscellaneous . | . . . Route ------- -11/Scrapyard -10/Materials (discovered 5 exits: [*Mat x2] / *Min x2 / [*Sub]) -10/Subcaves History --------- Turn | Location | Event 7 | -11/Scrapyard | Discovered new exit (range 15) 60 | -11/Scrapyard | Entered Materials 243 | -10/Materials | Discovered new exit (range 16) 317 | -10/Materials | Build established: Mutant 355 | -10/Materials | Identified exit to Mines 498 | -10/Materials | Destroyed 7 combat bots 521 | -10/Materials | Discovered new exit (range 5) 539 | -10/Materials | Discovered new exit (range 11) 662 | -10/Materials | Repaired Aluminum Leg 694 | -10/Materials | Repaired Shotgun? 779 | -10/Materials | Entered Subcaves 857 | -10/Subcaves | Ambushed by swarm of Subdwellers 901 | -10/Subcaves | Core integrity fell below 50% 908 | -10/Subcaves | Core integrity fell below 20% 912 | -10/Subcaves | Lost 4 allies 919 | -10/Subcaves | Destroyed by 11-TL9(R) with Subdweller Machine Gun Last Messages --------------- MA-I0H(R) comes tumbling into view. LZ-4OW(h): "The Subs are coming!" Aluminum Leg destroyed. R5-HH2(O) collects matter. R5-HH2(O) puts together Scrap Shield. R5-HH2(O) collects matter. I1-13U(R) destroyed. 7K-LTV(R) affixes Scrap Shield Fragment to Scrap Shield. LZ-4OW(h) destroyed. Aluminum Leg destroyed. R5-HH2(O) collects matter. AJ-BVY(R) destroyed. Switching to secondary target: SO-UDE(R). 11-TL9(R) affixes Scrap Shield Fragment to Scrap Shield. Ion Engine destroyed. Shotgun destroyed. EM Shotgun destroyed. Shotgun destroyed. EM Shotgun destroyed. Structural Scanner destroyed. Map ----- +----------------------------------------------------+ | ?????????????????????????????????????????????????? | | ?????????????????????????????????????????????????? | | ####?????????????????????????????????????????????? | | #############?#####??????????????????????????????? | | #################??????????????????????????????? | | # # ##### ##??????????????????????????????? | | % ###?????????????????????????????? | | [* # ### # # ## ###?????????????????????????????? | | # ############ %####?###### ???????????????????? | | ############### [=########### ?????????????????? | | #####????????###!!% #### # # # ?????????????????? | | ?????????????## %[ ##?????????????????? | | ?????????????## = "" ## #""#?????????????????? | | ?????????????## #"""! ##########????????????????? | | ?????????????## # ""% %##### ###????????????????? | | ?????????????## !%=*[ ##????????????????? | | ?????????????## &%& ###????????????????? | | ?????????????## "= ##?????????????????? | | ?????????????## #"" ##?????????????????? | | ?????????????#####" ^ ##?????????????????? | | ?????????????#### = ] ###?????????????????? | | ?????????????## ###?????????????????? | | ?????????????## ""# ###?????????????????? | | ?????????????## ####^ ##?????????????????? | | ?????????????## ###;R% ##?????????????????? | | ?????????????### =%R @ ###????????????????? | | ?????????????#####; R % ###???????????????? | | ??????????????##### % ##???????????????? | | ???????????????"## ###??????????????? | | ???????????????"# ## ##??????????????? | | ???????????????" ## %^ ??????????????? | | ????????????? ##??????????? | | ???????????? ! % ##??????????? | | ??????????? ###??????????? | | ????????? ###??????????? | | ?????????## # ###???????????? | | ?????????######## ### ######???????????? | | ?????????############### #######????????????? | | ???????????????########## #####???????????????? | | ???????????????????????## ###?????????????????? | | ??????????????????????????? #??????????????????? | | ?????????????????????????????????????????????????? | | ?????????????????????????????????????????????????? | | ?????????????????????????????????????????????????? | | ?????????????????????????????????????????????????? | | ?????????????????????????????????????????????????? | | ?????????????????????????????????????????????????? | | ?????????????????????????????????????????????????? | | ?????????????????????????????????????????????????? | | ?????????????????????????????????????????????????? | +----------------------------------------------------+ Best States ------------- Heat Dissipation 25 Energy Generation 10 Energy Capacity 250 Matter Stores 300 Matter Capacity 300 Sight Range 16 Terrain Scan Density 10 Evasion (%) 55 Item Schematics ----------------- None Robot Schematics ------------------ None Fabricated ------------ Nothing Repaired ---------- Shotgun | 44% | -10/Materials Studied --------- None Alien Tech Used ----------------- None Achievements -------------- None Challenges ------------ None Game ------ Seed SuspensionSuperchargedFist Manual? 0 Play Time 00:10:57 Cumulative 5.0 hours Start 2026.08.03 @ 22:01:50 End 2026.08.03 @ 22:10:34 Sessions 1 Manual Loads 0 Difficulty Rogue Special Mode None Game No. 15 Rogue 15 Adventurer 0 Explorer 0 Win Type - Total 0 Types 0/0/0/0/0/0/0/0/0/0 Lore% 9 Gallery% 16 Achievement% 12 Wizard Run 0 Options --------- Layout 1 ASCII 0 Keyboard 0 Movement Numpad Keybinds 0 Fullscreen 1 Font 32/SmallcapsGlow Map View 77x35 Zoom Use 0% Tactical HUD 0 Map Filters NONE Filters NONE Steam 1 RUN: cc6ca046-9b8d-480e-8f66-09cf93d20f9f